bitfinex/quotes_ETHUSD_20241217
["timestamp","ask_amount","ask_price","bid_price","bid_amount"]
[1734453198625,2.971662,3941.7,3940.2,0.55]
[1734453198780,2.971662,3941.7,3938.7,0.35711062]
[1734453198781,2.971662,3942.1,3940.6,0.55]
[1734453198978,2.53648,3942.5,3940.9,0.55]
[1734453198979,0.129907,3942.2,3940.9,0.55]
[1734453199194,0.129907,3942.2,3940.2,3.0]
[1734453199195,2.971662,3942.5,3941.2,0.55]
[1734453200711,2.66477626,3942.7,3941.2,0.55]
[1734453200905,3.0,3942.6,3941.3,0.974]
[1734453201112,3.0,3942.6,3941.4,0.7024]
[1734453201823,3.0,3942.8,3941.4,0.7024]
[1734453202114,2.53648,3942.5,3941.4,0.7024]
[1734453202320,3.0,3942.8,3941.4,0.55]
[1734453202486,2.53666,3942.2,3941.4,0.55]
[1734453202882,2.53653,3942.4,3941.4,0.55]
[1734453203320,3.0,3942.8,3941.4,0.55]
[1734453203645,2.53548,3944.1,3941.4,0.55]
[1734453203646,2.971662,3943.8,3941.7,0.55]
[1734453203830,3.30319724,3943.8,3941.9,0.55]
[1734453204149,3.30319724,3943.8,3942.2,0.974]
[1734453204451,2.53549,3944.1,3942.4,0.974]
[1734453204624,2.971662,3944.2,3941.6,3.0]
[1734453204625,2.53556,3943.9,3942.7,0.55]
[1734453205024,2.53555,3944.0,3942.7,0.55]
[1734453205314,2.971662,3944.2,3942.7,0.55]
[1734453205518,3.0,3943.7,3942.7,0.55]
[1734453205718,2.53549,3944.1,3942.7,0.55]
[1734453205719,2.53583,3943.5,3942.7,0.55]
[1734453205960,3.0,3943.6,3942.7,0.55]
[1734453206133,2.971662,3944.2,3942.7,0.7024]
[1734453206134,3.0,3944.1,3942.7,0.7024]
[1734453206311,3.0,3943.5,3942.7,0.7024]
[1734453206511,2.53588,3943.4,3942.7,0.7024]
[1734453206757,2.53571,3943.7,3942.7,0.7024]
[1734453207047,3.0,3943.9,3942.7,0.7024]
[1734453207256,2.971662,3944.2,3942.9,0.55]
[1734453207257,3.0,3944.1,3942.9,0.55]
[1734453207621,5.53544,3944.1,3942.7,0.55]
[1734453207938,3.0,3943.9,3942.9,0.55]
[1734453208520,2.53557,3943.9,3942.9,0.55]
[1734453208713,3.0,3944.1,3942.8,0.974]
[1734453208949,0.5971662,3944.0,3942.9,0.55]
[1734453209133,3.12637812,3944.3,3942.9,0.55]
[1734453209357,3.12637812,3944.3,3943.0,0.974]
[1734453209358,0.12637812,3944.3,3943.0,0.974]
[1734453209529,2.971662,3944.7,3943.0,0.974]
[1734453209530,2.971662,3944.7,3943.1,0.55]
[1734453209728,2.5352,3944.5,3943.0,0.974]
[1734453210132,2.5352,3944.5,3942.9,0.55]
[1734453210328,0.5506862,3944.4,3943.2,0.974]
[1734453210533,3.0859462,3944.4,3943.3,0.55]
[1734453210753,2.53544,3944.1,3943.3,0.55]
[1734453210926,0.5506862,3944.4,3943.3,0.55]
[1734453211875,3.0859362,3944.4,3943.4,0.8915]
[1734453212169,2.53537,3944.2,3943.4,0.8915]
[1734453212451,0.60859362,3944.3,3943.4,0.8915]
[1734453213257,3.14391362,3944.3,3943.4,0.8915]
[1734453213456,0.60859362,3944.3,3943.4,0.8915]
[1734453213640,2.53499,3944.8,3943.6,0.8915]
[1734453213843,2.53499,3944.8,3943.7,0.55]
[1734453214649,2.971662,3945.1,3943.8,0.8915]
[1734453214847,2.53511,3944.6,3943.8,0.8915]
[1734453215051,2.53544,3944.1,3943.8,0.8915]
[1734453215253,0.253511,3944.6,3943.8,0.8915]
[1734453215254,2.53531,3944.3,3943.8,0.8915]
[1734453215954,2.788681,3944.6,3943.8,0.8915]
[1734453216166,2.53518,3944.5,3943.8,0.8915]
[1734453216663,0.253511,3944.6,3943.8,0.8915]
[1734453216862,2.53511,3944.6,3943.8,0.8915]
[1734453217046,2.53582,3943.5,3941.5,2.971662]
[1734453217208,2.971662,3944.3,3941.5,2.971662]
[1734453217209,2.971662,3944.3,3942.4,0.8915]
[1734453217408,2.53555,3944.0,3942.4,0.8915]
[1734453217609,0.253555,3943.9,3942.4,0.8915]
[1734453217820,2.53572,3943.7,3942.4,0.8915]
[1734453218025,0.253555,3943.9,3942.4,0.8915]
[1734453218442,0.253555,3943.9,3942.7,0.55]
[1734453218608,0.253555,3943.9,3941.8,0.0253586]
[1734453218609,2.53572,3943.7,3942.9,0.55]
[1734453218812,0.2789275,3943.7,3942.9,0.55]
[1734453219408,0.253555,3943.9,3942.9,0.55]
[1734453220253,2.53575,3943.6,3942.9,0.55]
[1734453220541,2.53585,3943.5,3942.9,0.55]
[1734453221139,0.253555,3943.9,3942.8,0.8915]
[1734453221329,3.225217,3943.9,3942.8,0.8915]
[1734453221658,2.53601,3943.2,3942.8,0.8915]
[1734453222149,2.53575,3943.7,3942.8,0.8915]
[1734453222315,2.53582,3943.5,3942.8,0.8915]
[1734453222823,2.5357,3943.7,3942.8,0.8915]
[1734453223012,0.3225217,3943.8,3942.8,0.8915]
[1734453223013,0.3225217,3943.8,3942.9,0.55]
[1734453224041,0.253555,3943.9,3943.0,0.8915]
[1734453224286,2.5357,3943.7,3943.0,0.8915]
[1734453224425,0.253555,3943.9,3943.0,0.8915]
[1734453224736,2.53597,3943.3,3943.0,0.8915]
[1734453224940,2.53581,3943.5,3943.0,0.8915]
[1734453225492,0.253581,3943.5,3943.0,0.8915]
[1734453225628,2.971662,3943.8,3943.0,0.8915]
[1734453225831,2.53607,3943.1,3943.0,0.8915]
[1734453226152,5.507582,3943.4,3941.3,0.8915]
[1734453226153,2.53635,3942.7,3941.3,0.8915]
[1734453227066,2.5364,3942.6,3941.3,0.8915]
[1734453227359,2.53628,3942.8,3941.6,0.55]
[1734453227565,2.53628,3942.8,3940.8,3.12977484]
[1734453227566,2.971662,3943.4,3941.9,0.8868]
[1734453227727,2.53621,3942.9,3942.0,0.55]
[1734453228264,2.971662,3943.4,3942.0,0.55]
[1734453228451,2.53619,3943.0,3942.0,0.55]
[1734453228951,2.53651,3942.5,3942.0,0.55]
[1734453229131,2.53634,3942.7,3942.0,0.55]
[1734453230390,0.253634,3942.6,3941.9,0.8868]
[1734453230531,2.53678,3942.0,3941.9,0.8868]
[1734453230728,2.53665,3942.3,3941.9,0.8868]
[1734453230931,2.53678,3942.0,3941.9,0.8868]
[1734453231132,2.53698,3941.7,3941.6,0.8868]
[1734453231474,2.53697,3941.7,3941.6,0.8868]
[1734453231895,2.53731,3941.2,3941.0,0.8868]
[1734453232080,2.53736,3941.1,3941.0,0.8868]
[1734453232283,2.53717,3941.4,3941.0,0.8868]
[1734453232793,0.253697,3941.7,3941.0,0.8868]
[1734453232794,2.53724,3941.3,3941.0,0.8868]
[1734453233286,0.253697,3941.7,3941.0,0.8868]
[1734453233433,6.46746,3942.1,3941.0,0.8868]
[1734453233434,3.9307,3942.1,3941.0,0.8868]
[1734453233632,2.53751,3940.9,3939.2,0.8868]
[1734453233951,2.971662,3941.7,3939.2,0.8868]
[1734453233952,3.0,3941.6,3939.2,0.8868]
[1734453234289,2.53748,3941.0,3939.2,0.8868]
[1734453234437,3.0,3941.6,3939.4,0.8868]
[1734453234635,2.5373,3941.2,3939.4,0.8868]
[1734453235239,2.5373,3941.2,3939.7,0.55]
[1734453235445,2.53743,3941.0,3939.6,0.8868]
[1734453235648,0.8508682,3941.5,3939.8,0.55]
[1734453236088,0.8508682,3941.5,3940.0,0.55]
[1734453236258,2.53744,3941.0,3940.3,0.8868]
[1734453236588,0.8508682,3941.5,3940.3,0.8868]
[1734453237474,3.0,3941.3,3940.3,0.8868]
[1734453237656,2.53762,3940.7,3940.3,0.8868]
[1734453237834,2.53749,3940.9,3940.3,0.8868]
[1734453238040,3.0,3940.8,3940.3,0.8868]
[1734453238467,0.8508682,3941.5,3940.3,0.8868]
[1734453238668,3.0,3941.6,3940.3,0.8868]
[1734453238669,0.68225302,3941.4,3940.3,0.8868]
[1734453238876,0.9307,3942.1,3940.5,0.8868]
[1734453239172,2.53699,3941.7,3940.7,0.8868]
[1734453239879,2.53709,3941.6,3940.7,0.8868]
[1734453240060,2.53723,3941.3,3940.7,0.8868]
[1734453240258,0.253709,3941.6,3940.7,0.8868]
[1734453240259,2.53711,3941.5,3940.7,0.8868]
[1734453240438,2.971662,3942.2,3940.7,0.8868]
[1734453240439,3.0,3942.0,3940.7,0.8868]
[1734453240634,3.0,3942.0,3940.9,0.8868]
[1734453240877,3.0,3942.2,3941.0,0.55]
[1734453241089,2.53707,3941.6,3941.0,0.55]
[1734453241576,2.53692,3941.8,3941.0,0.55]
[1734453241872,2.53699,3941.7,3941.0,0.55]
[1734453242078,3.0,3942.0,3940.9,0.8868]
[1734453242079,3.0,3941.8,3940.9,0.8868]
[1734453242441,3.55366,3942.1,3940.9,0.8868]
[1734453242647,3.0,3941.8,3940.9,0.8868]
[1734453243047,4.916534,3942.6,3941.2,0.55]
[1734453243048,2.53661,3942.3,3941.2,0.55]
[1734453243248,2.53646,3942.5,3941.4,0.55]
[1734453243457,2.53646,3942.5,3940.5,0.34408395]
[1734453243458,2.53646,3942.5,3941.6,0.55]
[1734453243762,2.971662,3943.1,3941.7,0.9285]
[1734453243946,2.971662,3942.6,3941.7,0.9285]
[1734453244271,2.53639,3942.6,3941.7,0.9285]
[1734453244477,3.10098162,3943.0,3941.8,0.55]
[1734453244674,0.31009816,3942.9,3941.8,0.55]
[1734453244873,2.53653,3942.4,3941.8,0.55]
[1734453245076,0.31009816,3942.9,3941.7,0.9285]
[1734453245243,2.53673,3942.1,3941.7,0.9285]
[1734453245443,2.53656,3942.4,3941.7,0.9285]
[1734453245649,0.5073,3942.3,3941.7,0.9285]
[1734453245845,2.84632816,3942.9,3941.7,0.9285]
[1734453245846,0.31009816,3942.9,3941.7,0.9285]
[1734453246044,6.394342,3943.4,3941.9,0.9285]
[1734453246245,2.53588,3943.4,3942.2,0.55]
[1734453246471,2.53588,3943.4,3942.4,0.55]
[1734453246646,2.789538,3943.3,3942.4,0.55]
[1734453247002,2.53566,3943.8,3942.5,0.9285]
[1734453247205,0.253555,3943.9,3942.8,0.55]
[1734453247496,2.53577,3943.6,3942.8,0.55]
[1734453247715,2.53585,3943.5,3942.8,0.55]
[1734453247868,2.53589,3943.4,3942.8,0.55]
[1734453248066,2.53554,3944.0,3942.8,0.55]
[1734453248383,1.013666,3944.6,3942.8,0.55]
[1734453248384,2.971662,3944.6,3943.0,0.55]
[1734453248585,2.53519,3944.5,3943.4,0.9285]
[1734453248770,2.53531,3944.3,3943.4,0.9285]
[1734453249300,0.8868,3944.9,3943.4,0.9285]
[1734453249512,2.53525,3944.4,3943.4,0.9285]
[1734453249728,0.3858462,3944.8,3943.4,0.9285]
[1734453249879,2.53511,3944.6,3943.4,0.9285]
[1734453250297,2.53534,3944.3,3943.4,0.9285]
[1734453250915,2.9208862,3944.8,3943.4,0.9285]
[1734453250916,2.971662,3944.6,3943.4,0.9285]
[1734453251112,0.33575082,3944.5,3943.4,0.9285]
[1734453251310,2.87092082,3944.5,3943.4,0.9285]
[1734453251533,3.0,3944.1,3943.4,0.9285]
[1734453251679,2.53576,3943.6,3943.4,0.9285]
[1734453252295,2.53581,3943.5,3943.4,0.9285]
[1734453252490,0.253581,3943.5,3941.5,0.9285]
[1734453252785,2.971662,3943.4,3941.5,0.9285]
[1734453252980,2.5364,3942.6,3941.5,0.9285]
[1734453253316,3.0,3943.3,3941.5,0.9285]
[1734453253317,2.53628,3942.8,3941.5,0.9285]
[1734453253515,2.53607,3943.1,3941.5,0.9285]
[1734453253724,3.0,3941.7,3941.0,0.9285]
[1734453253905,2.971662,3941.2,3939.8,0.9285]
[1734453254081,2.538,3940.1,3939.8,0.9285]
[1734453254404,2.53813,3939.9,3939.8,0.9285]
[1734453254604,2.53813,3939.9,3938.1,4.02204248]
[1734453254605,2.53774,3940.5,3938.1,0.9285]
[1734453254925,3.858462,3940.7,3938.1,0.9285]
[1734453254926,2.53814,3939.9,3938.1,0.9285]
[1734453255240,2.53825,3939.8,3938.1,0.9285]
[1734453255445,2.53827,3939.7,3938.1,0.9285]
[1734453255756,2.53821,3939.8,3938.1,0.9285]
[1734453255946,2.53821,3939.8,3938.2,0.55]
[1734453256107,2.53836,3939.6,3938.4,0.55]
[1734453256440,2.971662,3940.3,3938.4,0.55]
[1734453256441,2.971662,3940.3,3938.6,0.55]
[1734453256800,2.53816,3939.9,3938.6,0.55]
[1734453257029,2.53814,3939.9,3938.6,0.55]
[1734453257204,2.971662,3940.3,3938.6,0.55]
[1734453257205,2.53804,3940.1,3938.6,0.55]
[1734453257390,2.971662,3940.3,3938.6,0.55]
[1734453257391,2.53808,3940.0,3938.6,0.55]
[1734453258000,2.53816,3939.9,3938.6,0.55]
[1734453258619,2.971662,3940.3,3938.6,0.55]
[1734453258918,2.53806,3940.1,3938.6,0.55]
[1734453259487,0.5509422,3940.2,3938.8,0.55]
[1734453259488,2.53809,3940.0,3938.8,0.55]
[1734453259817,2.538,3940.1,3938.8,0.55]
[1734453260820,2.971662,3940.8,3939.0,0.55]
[1734453261118,2.971662,3940.8,3939.2,0.55]
[1734453261365,2.53781,3940.5,3939.2,0.55]
[1734453261624,2.53781,3940.5,3938.2,3.02538116]
[1734453261625,2.53865,3939.1,3937.4,0.9285]
[1734453261919,0.8868,3939.2,3937.0,0.9285]
[1734453261920,2.971662,3937.8,3937.0,0.9285]
[1734453262153,2.53923,3938.2,3937.0,0.9285]
[1734453262154,2.971662,3937.1,3937.0,0.9285]
[1734453262369,2.971662,3937.1,3935.2,0.9285]
[1734453262487,2.971662,3937.1,3935.4,0.9285]
[1734453262849,2.971662,3937.1,3935.7,0.9285]
[1734453263057,2.971662,3937.1,3935.9,0.9285]
[1734453263889,2.971662,3937.1,3936.0,0.55]
[1734453264219,3.0,3938.3,3936.3,0.9285]
[1734453264220,3.34227051,3937.6,3936.3,0.9285]
[1734453264390,3.34227051,3937.6,3936.6,0.55]
[1734453264992,5.88193051,3937.6,3936.6,0.55]
[1734453265440,3.34227051,3937.6,3936.6,0.55]
[1734453266690,3.34227051,3938.1,3936.6,0.55]
[1734453266930,3.34227051,3938.1,3936.9,0.9285]
[1734453267094,3.34227051,3938.1,3937.0,0.55]
[1734453267723,2.53948,3937.9,3937.0,0.55]
[1734453267945,3.34227051,3937.6,3937.0,0.55]
[1734453268129,5.88191051,3937.6,3937.0,0.55]
[1734453268796,3.34227051,3937.6,3937.0,0.55]
[1734453268994,3.34227051,3937.6,3937.0,0.69785]
[1734453269225,3.34227051,3938.6,3937.2,0.9285]
[1734453269430,3.34227051,3938.6,3937.3,0.55]
[1734453269640,3.34227051,3938.6,3937.5,0.55]
[1734453270334,2.53905,3938.5,3937.5,0.55]
[1734453270498,3.34227051,3938.6,3937.5,0.69785]
[1734453271102,5.88127051,3938.6,3937.5,0.69785]
[1734453271503,3.34227051,3938.6,3937.5,0.69785]
[1734453273335,0.9477,3939.9,3938.1,0.55]
[1734453273540,4.35704851,3940.1,3938.3,0.55]
[1734453273736,4.35704851,3940.1,3938.6,0.8977]
[1734453273737,3.87274536,3940.1,3938.6,0.8977]
[1734453273902,0.53047485,3940.1,3938.7,0.55]
[1734453274108,0.9477,3940.4,3938.7,0.55]
[1734453274310,3.48555,3940.4,3938.7,0.55]
[1734453274507,2.53808,3940.0,3938.7,0.55]
[1734453274736,2.5382,3939.8,3938.7,0.55]
[1734453275041,2.53807,3940.0,3938.7,0.55]
[1734453275335,2.791877,3940.0,3938.7,0.71500086]
[1734453275764,2.5382,3939.8,3938.7,0.71500086]
[1734453275904,0.253807,3940.0,3938.7,0.71500086]
[1734453276760,0.12578097,3939.9,3938.7,0.71500086]
[1734453277457,0.12578097,3939.9,3938.7,0.55]
[1734453277654,2.5382,3939.8,3938.7,0.55]
[1734453278442,0.12578097,3939.9,3938.7,0.55]
[1734453278649,2.53821,3939.8,3938.7,0.55]
[1734453278848,2.53821,3939.8,3938.6,0.8977]
[1734453278849,0.12578097,3939.9,3938.6,0.8977]
[1734453279014,2.53859,3939.2,3938.6,0.8977]
[1734453279214,0.253859,3939.1,3938.6,0.8977]
[1734453279463,0.12578097,3939.9,3938.6,0.8977]
[1734453280003,3.8977,3940.6,3938.6,0.8977]
[1734453280004,2.5381,3940.0,3938.6,0.8977]
[1734453280208,2.5381,3940.0,3938.7,0.55]
[1734453280410,2.53827,3939.7,3938.7,0.55]
[1734453280808,0.9477,3940.4,3938.7,0.55]
[1734453281029,0.9477,3940.4,3938.7,0.69477]
[1734453281030,3.12657938,3940.1,3938.7,0.69477]
[1734453281408,2.53811,3940.0,3938.7,0.69477]
[1734453281840,0.12657938,3940.1,3938.7,0.69477]
[1734453282345,2.53818,3939.9,3938.7,0.69477]
[1734453282506,0.12657938,3940.1,3938.7,0.55]
[1734453282711,2.53847,3939.4,3938.7,0.55]
[1734453283107,2.53858,3939.2,3938.6,0.8977]
[1734453283314,0.12657938,3940.1,3938.6,0.8977]
[1734453283315,2.53876,3939.0,3938.6,0.8977]
[1734453284144,4.26317051,3939.5,3938.6,0.8977]
[1734453284443,2.96480705,3939.4,3937.0,0.9259]
[1734453284657,2.53884,3938.9,3937.0,0.9259]
[1734453284813,3.42631705,3939.4,3937.0,0.9259]
[1734453285343,3.42631705,3939.4,3937.0,0.95129133]
[1734453285511,5.96482705,3939.4,3937.0,0.95129133]
[1734453285712,1.02279976,3939.3,3937.0,0.95129133]
[1734453286247,1.02279976,3939.3,3937.3,0.55]
[1734453286451,1.02279976,3939.3,3937.4,0.9001]
[1734453286615,1.02279976,3939.3,3937.5,0.55]
[1734453286812,2.53858,3939.2,3937.8,0.9001]
[1734453287040,0.69876968,3939.1,3937.9,0.55]
[1734453287218,0.42631705,3939.4,3937.9,0.55]
[1734453287458,3.42631705,3939.4,3938.1,0.55]
[1734453287647,5.53834,3939.6,3938.3,0.55]
[1734453287948,3.0,3939.6,3938.3,0.55]
[1734453288741,0.12748844,3939.5,3938.3,0.55]
[1734453288942,3.0,3939.2,3938.3,0.55]
[1734453289516,0.12748844,3939.5,3938.3,0.55]
[1734453289717,0.86344517,3939.4,3938.3,0.55]
[1734453290039,0.12748844,3939.5,3938.3,0.55]
[1734453290253,3.0,3939.4,3938.3,0.55]
[1734453290463,2.53846,3939.4,3938.3,0.55]
[1734453290813,3.0,3939.3,3938.3,0.55]
[1734453291132,0.12748844,3939.5,3938.3,0.55]
[1734453291334,2.53852,3939.3,3938.3,0.55]
[1734453292158,2.53865,3939.1,3938.3,0.55]
[1734453292674,3.0,3939.8,3938.3,0.55]
[1734453292954,2.66458938,3940.1,3938.7,0.55]
[1734453293140,0.12657938,3940.1,3938.7,0.55]
[1734453293344,2.53838,3939.6,3938.7,0.55]
[1734453293858,3.10138026,3940.0,3938.6,0.9001]
[1734453293859,5.50683327,3939.7,3938.6,0.9001]
[1734453294422,2.53869,3939.1,3938.6,0.9001]
[1734453295053,0.9493,3939.6,3938.6,0.9001]
[1734453295230,3.0,3939.1,3938.0,0.9001]
[1734453295433,2.5392,3938.3,3938.0,0.9001]
[1734453295734,2.96857327,3938.7,3938.0,0.9001]
[1734453295951,2.53943,3937.9,3936.0,0.9001]
[1734453296147,2.53913,3938.4,3936.0,0.9001]
[1734453296324,2.53948,3937.9,3936.2,0.9001]
[1734453296524,2.96857327,3938.2,3936.2,0.9001]
[1734453296730,5.53929,3938.1,3936.2,0.9001]
[1734453296924,2.53947,3937.9,3936.2,0.9001]
[1734453297162,5.53929,3938.1,3936.2,0.9001]
[1734453297354,0.90156733,3938.0,3936.2,0.9001]
[1734453297525,3.0,3938.1,3936.2,0.9001]
[1734453297743,3.0,3938.6,3936.4,0.9001]
[1734453298023,3.0,3938.4,3936.6,0.9001]
[1734453298251,2.53913,3938.4,3936.8,0.9001]
[1734453298566,3.0,3938.3,3936.5,0.9001]
[1734453298793,3.0,3938.3,3936.7,0.55]
[1734453299067,3.0,3938.3,3937.1,0.55]
[1734453299231,0.9493,3938.7,3937.1,0.55]
[1734453299431,3.0,3938.4,3937.2,0.9001]
[1734453299630,3.0,3938.4,3937.3,0.55]
[1734453299945,0.648821,3938.4,3937.3,0.55]
[1734453300338,3.648821,3938.4,3937.3,0.55]
[1734453300526,3.0,3938.9,3937.3,0.55]
[1734453300861,0.59685733,3939.0,3937.7,0.55]
[1734453301064,0.12808218,3938.8,3937.6,0.9392]
[1734453301768,2.5389,3938.7,3937.6,0.9392]
[1734453302123,0.12808218,3938.8,3937.6,0.9392]
[1734453302577,2.53946,3937.9,3937.6,0.9392]
[1734453302894,3.0,3938.3,3937.6,0.9392]
[1734453303026,0.553913,3938.2,3937.6,0.9392]
[1734453303479,0.12808218,3938.8,3937.6,0.9392]
[1734453304144,0.12808218,3938.8,3937.7,0.55]
[1734453304511,2.53852,3939.3,3938.1,0.55]
[1734453304794,0.12581176,3939.4,3938.3,0.55]
[1734453304930,0.12581176,3939.4,3938.4,0.9406]
[1734453306343,3.58525993,3940.1,3938.7,0.55]
[1734453306665,0.9164,3940.4,3939.1,0.55]
[1734453306666,2.53786,3940.4,3939.1,0.55]
[1734453306968,4.53938816,3940.7,3939.2,1.22373616]
[1734453306969,2.5382,3939.8,3939.2,1.22373616]
[1734453307133,2.53819,3939.8,3939.3,0.1893656]
[1734453307332,2.53819,3939.8,3938.0,0.9406]
[1734453307533,2.53819,3939.8,3937.6,1.57335472]
[1734453307534,2.53849,3939.4,3938.3,0.55]
[1734453307770,2.53849,3939.4,3938.1,0.48209346]
[1734453307771,0.64231633,3939.7,3938.5,1.4906]
[1734453307927,0.9164,3939.3,3938.6,0.28314315]
[1734453308126,0.9164,3939.3,3937.1,2.64836239]
[1734453308127,2.96857327,3938.7,3937.8,0.9406]
[1734453308378,2.5393,3938.1,3937.8,0.9406]
[1734453308735,3.0,3938.4,3937.8,0.9406]
[1734453308953,2.53937,3938.0,3936.5,0.9406]
[1734453309159,0.553897,3938.3,3936.7,0.9406]
[1734453309160,3.0,3938.3,3936.7,0.9406]
[1734453309365,3.0,3938.3,3936.9,0.9406]
[1734453309694,3.0,3938.2,3937.1,0.9406]
[1734453309864,3.0,3938.2,3937.2,0.1894393]
[1734453310191,3.0,3938.7,3937.4,1.4906]
[1734453310391,3.0,3938.7,3936.6,1.07429895]
[1734453310392,3.0,3939.0,3937.6,0.55]
[1734453310567,2.48721489,3939.3,3936.8,4.01747641]
[1734453310568,3.58573993,3939.3,3937.9,0.9406]
[1734453310890,1.57081489,3939.5,3938.2,0.55]
[1734453310891,1.04720993,3939.5,3938.2,0.55]
[1734453311100,2.96857327,3939.6,3938.2,0.55]
[1734453311398,3.09589995,3939.5,3938.2,0.55]
[1734453311578,0.55744995,3939.5,3938.2,0.55]
[1734453311779,1.60465988,3939.5,3938.2,0.55]
[1734453312196,4.60465988,3939.5,3938.2,0.55]
[1734453312495,3.55744995,3939.5,3938.2,0.55]
[1734453312666,6.22182069,3939.5,3938.2,0.69906]
[1734453312866,0.12595074,3939.5,3938.4,0.55]
[1734453313068,0.12595074,3939.5,3938.5,0.9406]
[1734453313296,0.12595074,3939.5,3938.6,0.55]
[1734453313597,3.0,3939.4,3938.6,0.55]
[1734453313760,0.12595074,3939.5,3938.6,0.55]
[1734453314095,1.57081489,3939.9,3938.8,0.55]
[1734453314096,4.04720993,3939.9,3938.8,0.55]
[1734453314598,4.04720993,3939.9,3938.7,0.9406]
[1734453314599,0.12582078,3940.1,3939.0,0.55]
[1734453314960,2.96857327,3940.4,3939.3,0.55]
[1734453315155,1.04720993,3940.5,3939.3,0.55]
[1734453315767,3.58495993,3940.5,3939.3,0.55]
[1734453315968,2.53775,3940.5,3939.3,0.55]
[1734453316171,4.39739474,3940.5,3939.3,0.55]
[1734453316487,1.04720993,3940.7,3939.5,0.55]
[1734453316870,4.0157832,3940.8,3939.7,0.55]
[1734453317060,2.96857327,3940.8,3939.8,0.937]
[1734453317480,0.15399951,3942.0,3941.0,0.91444437]
[1734453317804,0.51764538,3943.8,3941.9,0.55]
[1734453318005,0.51764538,3943.8,3943.7,3.90557327]
[1734453318171,0.9354,3945.2,3943.7,9.68315103]
[1734453318371,0.12710359,3944.6,3943.8,1.27921752]
[1734453318600,0.9354,3945.2,3943.8,2.50520002]
[1734453318802,0.9354,3945.7,3943.9,0.55]
[1734453319007,0.12515088,3945.1,3943.9,0.55]
[1734453319214,0.9354,3947.1,3944.8,2.96857327]
[1734453319504,0.12748399,3945.6,3944.3,3.90557327]
[1734453319800,0.12748399,3945.6,3943.8,0.937]
[1734453320012,2.53531,3944.3,3943.8,0.937]
[1734453320210,0.12748399,3945.6,3943.8,0.937]
[1734453320211,0.253531,3944.2,3943.8,0.937]
[1734453320381,2.53511,3944.7,3943.8,0.937]
[1734453320585,2.53476,3945.2,3943.8,0.937]
[1734453320797,2.53512,3944.6,3943.8,0.937]
[1734453320999,3.32957823,3945.4,3943.8,0.937]
[1734453321000,2.53533,3944.3,3943.8,0.937]
[1734453321406,0.12748399,3945.6,3943.8,0.937]
[1734453321605,2.9408184,3945.5,3943.9,0.55]
[1734453321913,2.53518,3944.5,3943.9,0.55]
[1734453322638,2.53541,3944.2,3943.8,0.937]
[1734453322840,2.53527,3944.4,3943.8,0.937]
[1734453323126,2.53533,3944.3,3943.8,0.937]
[1734453324579,2.5354,3944.2,3943.8,0.937]
[1734453324781,0.12458972,3945.0,3943.8,0.937]
[1734453324782,3.0,3944.6,3943.8,0.937]
[1734453325012,2.83518,3944.5,3943.8,0.937]
[1734453325540,2.53526,3944.4,3943.8,0.937]
[1734453325829,0.3,3944.5,3943.8,0.937]
[1734453325973,2.53537,3944.2,3943.8,0.937]
[1734453326172,0.3,3944.5,3943.8,0.937]
[1734453326578,2.53523,3944.4,3943.8,0.937]
[1734453327208,2.53508,3944.7,3943.8,0.937]
[1734453327436,3.0,3944.8,3943.8,0.937]
[1734453327644,3.0,3944.8,3943.9,0.55]
[1734453327795,0.12458972,3945.0,3943.9,0.55]
[1734453328186,2.53515,3944.6,3943.9,0.55]
[1734453328443,2.53508,3944.7,3943.9,0.55]
[1734453328590,2.53514,3944.6,3943.9,0.55]
[1734453328786,2.53526,3944.4,3943.9,0.55]
[1734453329331,2.53498,3944.8,3943.9,0.55]
[1734453329531,2.53512,3944.6,3943.9,0.55]
[1734453329701,2.53519,3944.5,3943.9,0.55]
[1734453329898,2.53508,3944.7,3943.9,0.55]
[1734453330326,3.0,3945.0,3943.9,0.55]
[1734453330545,2.53509,3944.7,3943.9,0.55]
[1734453330749,2.53518,3944.5,3943.9,0.55]
[1734453331236,0.553479,3944.9,3942.8,0.81931584]
[1734453331237,3.0,3944.8,3942.8,0.81931584]
[1734453331444,3.88305723,3944.9,3942.4,0.9388]
[1734453331445,2.53579,3943.6,3942.4,0.9388]
[1734453331722,2.53551,3944.0,3942.4,0.9388]
[1734453332129,0.553551,3944.0,3942.5,0.1854895]
[1734453332317,3.0,3944.8,3942.6,1.1242895]
[1734453332499,2.5355,3944.0,3942.6,0.9388]
[1734453332701,2.5355,3944.0,3942.7,0.55]
[1734453332903,2.53504,3944.7,3942.7,0.69888]
[1734453333102,3.0,3944.8,3942.7,0.55]
[1734453333103,2.53575,3943.6,3942.7,0.55]
[1734453333307,2.53511,3944.6,3942.6,0.9388]
[1734453333308,0.9403,3944.2,3942.6,0.9388]
[1734453333501,2.53574,3943.7,3942.6,0.9388]
[1734453334024,2.53575,3943.6,3942.6,0.9388]
[1734453334213,3.32957823,3943.9,3942.6,0.9388]
[1734453334415,2.53569,3943.7,3942.6,0.9388]
[1734453334603,2.53569,3943.7,3942.7,0.55]